bitfinex-derivatives/quotes_ETHF0:USTF0_20250331
["timestamp","ask_amount","ask_price","bid_price","bid_amount"]
[1743447217629,1.0848,1843.8,1843.7,2.52042]
[1743447217827,1.0848,1843.8,1843.7,3.17635195]
[1743447218127,1.0848,1843.8,1843.7,2.09153195]
[1743447218326,1.0848,1843.8,1843.7,1.34623195]
[1743447218525,2.5602,1843.8,1843.7,1.34623195]
[1743447218824,2.5602,1843.8,1843.7,0.6903]
[1743447219026,2.5602,1843.8,1843.7,2.079]
[1743447219221,1.4754,1843.8,1843.4,1.08498]
[1743447219428,1.08497,1843.5,1843.4,3.16398]
[1743447220127,1.08497,1843.5,1843.4,3.82085387]
[1743447222631,1.08497,1843.5,1843.4,2.73587387]
[1743447222826,1.08497,1843.5,1843.4,3.82090387]
[1743447223429,2.46737,1843.5,1843.4,3.82090387]
[1743447223918,6.16037,1843.5,1843.4,3.82090387]
[1743447224322,5.0754,1843.5,1843.4,3.82090387]
[1743447224533,6.16037,1843.5,1843.4,3.82090387]
[1743447225225,2.46737,1843.5,1843.4,3.82090387]
[1743447227329,2.46737,1843.5,1843.4,2.73587387]
[1743447227525,2.46737,1843.5,1843.4,3.82090387]
[1743447227726,3.693,1843.6,1843.5,1.08492]
[1743447227727,1.08496,1843.6,1843.5,1.08492]
[1743447227925,6.21737,1843.7,1843.6,1.08492]
[1743447228128,2.52437,1843.7,1843.6,1.08492]
[1743447228328,2.52437,1843.7,1843.6,3.18959387]
[1743447228530,4.2926,1843.8,1843.7,1.08486]
[1743447228732,4.2926,1843.8,1843.7,2.48116]
[1743447228934,4.2926,1843.8,1843.7,3.13803387]
[1743447229133,5.6999,1843.8,1843.7,3.13803387]
[1743447229521,2.4921,1843.8,1843.7,3.13803387]
[1743447232932,4.29249,1844.0,1843.9,1.08474]
[1743447233133,9.41419,1844.0,1843.9,1.08474]
[1743447233334,6.20639,1844.0,1843.9,1.08474]
[1743447233536,2.51439,1844.0,1843.9,3.21854]
[1743447234140,2.51439,1844.0,1843.9,3.87528374]
[1743447235038,1.092798,1844.1,1844.0,1.08468]
[1743447235228,1.092798,1844.1,1844.0,2.59078]
[1743447236033,2.483398,1844.1,1844.0,2.59078]
[1743447237042,1.398738,1844.1,1844.0,2.59078]
[1743447237235,0.008138,1844.1,1844.0,2.59078]
[1743447237434,3.692,1844.5,1844.4,1.08438]
[1743447237638,1.3906,1844.5,1844.4,1.08438]
[1743447237840,2.47501,1844.5,1844.4,1.08438]
[1743447238333,1.3906,1844.5,1844.4,2.50518]
[1743447239239,2.47499,1844.5,1844.4,2.50518]
[1743447239645,1.3906,1844.5,1844.4,2.50518]
[1743447239946,2.47499,1844.5,1844.4,2.50518]
[1743447240245,1.3906,1844.5,1844.4,2.50518]
[1743447240635,2.47499,1844.5,1844.4,3.20738]
[1743447240836,2.47499,1844.5,1844.4,2.123]
[1743447242838,2.47499,1844.5,1844.4,3.20745]
[1743447243240,1.3906,1844.5,1844.4,3.20745]
[1743447243742,1.08439,1844.5,1844.4,3.20741]
[1743447244543,1.08439,1844.5,1844.4,2.123]
[1743447244739,1.08445,1844.4,1844.3,0.00813801]
[1743447245046,3.13525,1844.4,1844.3,1.09263801]
[1743447245348,3.13525,1844.4,1844.3,0.00813801]
[1743447245551,3.13525,1844.4,1844.3,1.50403801]
[1743447246242,3.13525,1844.4,1844.3,0.00813801]
[1743447246438,8.2408,1844.4,1843.7,3.2078]
[1743447246635,1.0848,1843.9,1843.8,2.1895]
[1743447247145,2.4827,1843.9,1843.8,3.2743]
[1743447247343,2.4827,1843.9,1843.8,2.1895]
[1743447247542,2.4827,1843.9,1843.6,0.7073]
[1743447247543,1.08486,1843.7,1843.6,0.7073]
[1743447247736,1.08486,1843.7,1843.6,2.1485]
[1743447248144,1.08486,1843.7,1843.6,1.4412]
[1743447248346,1.08486,1843.7,1843.6,2.52612]
[1743447248534,2.48276,1843.7,1843.6,2.52612]
[1743447249345,2.48276,1843.7,1843.6,1.4412]
[1743447249647,1.08492,1843.6,1843.5,3.90953801]
[1743447249946,2.48282,1843.6,1843.5,0.00813801]
[1743447250952,5.69062,1843.6,1843.5,0.00813801]
[1743447252943,5.69062,1843.6,1843.0,3.2078]
[1743447252944,1.08521,1843.1,1843.0,3.2078]
[1743447253146,4.77521,1843.1,1843.0,3.2078]
[1743447253346,1.08527,1843.0,1842.9,1.4931]
[1743447253648,1.4868,1843.0,1842.9,2.56183748]
[1743447254549,2.57207,1843.0,1842.9,2.56183748]
[1743447256347,4.77525,1843.1,1843.0,1.08527]
[1743447256545,4.75865748,1843.1,1843.0,1.08527]
[1743447256746,4.75866748,1843.1,1843.0,1.08527]
[1743447256947,1.08527,1843.0,1842.9,2.4537]
[1743447257244,2.51367,1843.0,1842.9,2.43710748]
[1743447257548,2.51367,1843.0,1842.9,1.35180748]
[1743447257740,1.4284,1843.0,1842.9,2.43713748]
[1743447257940,3.9379,1843.5,1843.1,2.71303]
[1743447258149,1.41180748,1843.4,1843.3,1.08509]
[1743447258349,2.49683748,1843.4,1843.3,1.08509]
[1743447258545,1.08509,1843.3,1843.2,2.8155]
[1743447258745,1.08509,1843.3,1843.2,1.4471]
[1743447258946,1.08509,1843.3,1842.7,2.71347]
[1743447258947,1.08527,1843.0,1842.9,1.08529]
[1743447259151,1.08527,1843.0,1842.9,1.77829748]
[1743447259350,3.2078,1843.3,1842.9,0.7096]
[1743447259551,1.08522,1843.1,1843.0,1.08523]
[1743447259755,3.19120748,1843.3,1842.9,0.7096]
[1743447259956,1.08522,1843.1,1843.0,1.08522]
[1743447260253,1.08522,1843.1,1842.9,0.7096]
[1743447260452,3.19120748,1843.3,1842.9,0.69300748]
[1743447260654,1.08522,1843.1,1843.0,1.08523]
[1743447261455,3.17461496,1843.3,1842.9,0.69300748]
[1743447261652,1.08522,1843.1,1843.0,1.08523]
[1743447263056,1.4357,1843.2,1843.1,1.08521]
[1743447263259,4.4211,1843.5,1843.3,1.08504]
[1743447263458,1.4324,1843.4,1843.3,1.08504]
[1743447264257,2.51743,1843.4,1843.3,1.08504]
[1743447264456,1.08509,1843.3,1843.2,1.7868]
[1743447265050,1.08509,1843.3,1843.2,1.78685]
[1743447265654,2.51746,1843.4,1843.3,1.08509]
[1743447266162,1.08509,1843.3,1843.2,1.7868]
[1743447266659,1.08509,1843.3,1843.2,0.7017]
[1743447267159,1.08515,1843.2,1843.1,4.29301]
[1743447267355,1.08515,1843.2,1843.1,3.2078]
[1743447267554,1.08515,1843.2,1843.1,4.29301]
[1743447267954,2.44795,1843.2,1843.1,4.29301]
[1743447268159,1.08509,1843.4,1843.3,1.08504]
[1743447268361,1.08515,1843.3,1843.2,1.0851]
[1743447268662,2.59299,1843.4,1843.3,1.08509]
[1743447269161,1.5079,1843.4,1843.3,1.08509]
[1743447269357,4.29269,1843.7,1843.6,1.08485]
[1743447269554,2.5927,1843.8,1843.7,1.08486]
[1743447270159,2.5927,1843.8,1843.6,1.08488]
[1743447270160,1.08491,1843.7,1843.6,1.08488]
[1743447270354,1.08497,1843.6,1843.5,1.08492]
[1743447270764,1.08497,1843.5,1843.4,1.81629]
[1743447271064,1.08515,1843.3,1843.2,1.08512]
[1743447271560,1.371,1843.4,1843.3,1.08509]
[1743447271752,1.08503,1843.4,1843.3,1.08509]
[1743447271954,1.371,1843.5,1843.1,6.60721]
[1743447272162,1.08509,1843.4,1843.3,1.08505]
[1743447272565,1.08515,1843.3,1843.2,1.08512]
[1743447274259,2.45604,1843.4,1843.3,1.08509]
[1743447274464,1.371,1843.4,1843.3,1.08509]
[1743447274766,2.45603,1843.4,1843.3,1.08509]
[1743447277362,1.371,1843.4,1843.1,0.6865]
[1743447277557,1.08533,1842.9,1842.8,0.00813801]
[1743447277761,2.71289,1843.2,1842.8,3.37135757]
[1743447277967,1.08525,1843.1,1843.0,1.08521]
[1743447278262,5.1511,1843.3,1842.8,6.08471757]
[1743447278263,5.1511,1843.3,1842.9,2.71319]
[1743447278464,1.0852,1843.2,1843.1,1.08516]
[1743447278964,3.69813801,1843.3,1843.2,1.08515]
[1743447279362,4.78322801,1843.3,1843.2,3.17153757]
[1743447279862,0.00813801,1843.3,1843.2,3.17153757]
[1743447280075,0.00813801,1843.3,1843.2,6.37933757]
[1743447280365,1.09322801,1843.3,1843.2,3.17153757]
[1743447282167,1.09322801,1843.3,1843.2,3.89833757]
[1743447285476,0.00813801,1843.3,1843.2,3.89833757]
[1743447285973,1.08494,1843.6,1843.5,1.08497]
[1743447286174,2.50454,1843.6,1843.5,1.08497]
[1743447286767,2.50454,1843.6,1843.5,2.55537]
[1743447286969,1.08487,1843.7,1843.6,1.08492]
[1743447287174,1.09300801,1843.7,1843.6,2.55532]
[1743447287476,2.59100801,1843.7,1843.6,3.21320757]
[1743447288377,2.59100801,1843.7,1843.6,2.12828757]
[1743447288769,2.59100801,1843.7,1843.6,2.55532]
[1743447288770,3.34370801,1843.7,1843.6,2.55532]
[1743447289370,3.34370801,1843.7,1843.6,3.21316613]
[1743447289968,2.59100801,1843.7,1843.6,3.21316613]
[1743447290576,0.00813801,1843.7,1843.6,3.21316613]
[1743447291479,1.09299801,1843.7,1843.6,3.21316613]
[1743447293877,1.09299801,1843.7,1843.6,1.74276613]
[1743447294083,1.81829801,1843.7,1843.6,1.74276613]
[1743447294282,1.09299801,1843.7,1843.6,1.74276613]
[1743447294587,1.09299801,1843.7,1843.6,3.19986613]
[1743447296678,0.00813801,1843.7,1843.6,3.19986613]
[1743447297284,1.09299801,1843.7,1843.6,3.19986613]
[1743447298084,0.00813801,1843.7,1843.6,3.19986613]
[1743447299387,0.00813801,1843.7,1843.6,6.40766613]
[1743447300284,1.09299801,1843.7,1843.6,3.19986613]
[1743447300492,1.09299801,1843.7,1843.6,0.65784613]
[1743447301182,1.08492,1843.6,1843.5,2.1561]
[1743447301383,1.08497,1843.5,1843.4,3.28253]
[1743447301590,2.57057,1843.5,1843.4,3.94045838]
[1743447301785,1.08497,1843.5,1843.4,3.94045838]
[1743447302691,1.08497,1843.5,1843.4,3.94040838]
[1743447302890,2.54727,1843.6,1843.5,1.08497]
[1743447303092,2.54727,1843.6,1843.5,1.4184]
[1743447303093,2.54722,1843.6,1843.5,1.4184]
[1743447303590,1.08497,1843.5,1843.4,1.82011]
[1743447303785,2.54727,1843.5,1843.4,3.23851]
[1743447304489,2.54727,1843.5,1843.4,3.89638284]
[1743447305785,2.54727,1843.5,1843.4,2.07627284]
[1743447306088,2.54727,1843.5,1843.4,3.16130284]
[1743447310193,2.54727,1843.5,1843.4,0.65787284]
[1743447310900,1.08509,1843.4,1843.3,1.08503]
[1743447311105,2.46579,1843.4,1843.3,2.56373]
[1743447311298,2.46579,1843.4,1843.3,3.22197917]
[1743447314911,2.46579,1843.4,1843.3,2.13694917]
[1743447315806,4.96579,1843.4,1843.3,0.65824917]
[1743447316004,4.96579,1843.4,1843.0,1.09338801]
[1743447316005,1.08521,1843.1,1843.0,0.00813801]
[1743447316211,4.77221,1843.1,1843.0,0.00813801]
[1743447316510,1.08545,1842.7,1842.6,2.1354]
[1743447316711,1.08545,1842.7,1842.6,2.11880748]
[1743447317011,1.08559,1842.5,1842.4,1.08556]
[1743447317400,2.52506,1842.6,1842.5,1.08556]
[1743447317699,2.52506,1842.6,1842.4,0.65475985]
[1743447317700,1.08556,1842.5,1842.4,1.74033985]
[1743447318010,2.52506,1842.5,1842.4,1.08558]
[1743447318606,2.52506,1842.5,1842.4,1.73944347]
[1743447318806,2.52506,1842.5,1842.4,0.65386347]
[1743447319107,2.52506,1842.5,1842.4,1.73948347]
[1743447319305,2.52506,1842.5,1842.4,0.65386347]
[1743447319906,2.52506,1842.5,1842.4,2.55502]
[1743447320211,2.52506,1842.5,1842.4,1.4694]
[1743447320611,1.08562,1842.4,1842.3,1.82576801]
[1743447320812,2.56892,1842.4,1842.3,1.82576801]
[1743447321213,2.56892,1842.4,1842.3,0.74013801]
[1743447321407,2.56892,1842.4,1842.3,0.00813801]
[1743447321714,2.56892,1842.4,1842.3,1.09381801]
[1743447321915,2.56892,1842.4,1842.3,0.00813801]
[1743447322309,2.56892,1842.4,1842.3,1.09381801]
[1743447323419,2.56892,1842.4,1842.3,0.00813801]
[1743447323616,2.56892,1842.4,1842.3,1.09381801]
[1743447323818,1.4833,1842.4,1842.3,1.09381801]
[1743447324211,2.56892,1842.4,1842.3,1.09381801]
[1743447324816,1.4833,1842.4,1842.3,1.09381801]
[1743447325822,4.77361,1842.5,1842.4,1.08562]
[1743447326009,3.69613801,1842.6,1842.5,1.08556]
[1743447326210,3.69613801,1842.6,1842.5,2.54086]
[1743447326419,4.78163801,1842.6,1842.5,2.54086]
[1743447328123,1.09363801,1842.6,1842.5,2.54086]
[1743447328516,1.09363801,1842.6,1842.5,0.7144]
[1743447328925,1.09363801,1842.6,1842.5,1.79996]
[1743447329226,2.54463801,1842.6,1842.5,1.79996]
[1743447329521,0.00813801,1842.6,1842.5,1.79996]
[1743447332523,0.00813801,1842.6,1842.5,2.45186577]
[1743447334617,1.09363801,1842.6,1842.5,1.36630577]
[1743447335323,2.57923801,1842.6,1842.5,3.82476577]
[1743447335522,2.57923801,1842.6,1842.5,2.73920577]
[1743447335722,2.57923801,1842.6,1842.5,3.82476577]
[1743447335921,2.57923801,1842.6,1842.5,2.73920577]
[1743447336124,2.57923801,1842.6,1842.5,3.82476577]
[1743447338725,1.09363801,1842.6,1842.5,3.82476577]
[1743447339930,0.00813801,1842.6,1842.5,3.82476577]
[1743447340318,1.09363801,1842.6,1842.5,3.82476577]
[1743447340923,1.09363801,1842.6,1842.5,2.0873]
[1743447341126,1.09363801,1842.6,1842.5,3.17286]
[1743447342129,1.09363801,1842.6,1842.5,2.0873]
[1743447342328,1.09363801,1842.6,1842.5,3.17286]
[1743447342627,1.09363801,1842.6,1842.5,2.0873]
[1743447342833,1.08562,1842.4,1842.3,3.94489801]
[1743447344522,1.08562,1842.4,1842.3,4.59982458]
[1743447345634,1.08562,1842.4,1842.3,0.66306458]
[1743447345832,1.08562,1842.4,1842.3,1.74874458]
[1743447346335,2.50982,1842.4,1842.3,1.74874458]
[1743447346534,2.50982,1842.4,1842.3,0.66306458]
[1743447347427,6.19682,1842.4,1842.3,0.66306458]
[1743447347628,6.19682,1842.4,1842.3,1.74874458]
[1743447347829,6.19682,1842.4,1842.3,0.00813801]
[1743447354341,2.50982,1842.4,1842.3,1.09381801]
[1743447354529,6.19682,1842.4,1842.3,3.25171801]
[1743447354935,6.19682,1842.4,1842.3,3.90671789]
[1743447355639,0.75073801,1842.6,1842.5,1.08556]
[1743447355835,1.09365801,1842.6,1842.5,1.08556]
[1743447356337,2.48025801,1842.6,1842.5,2.52756]
[1743447356729,1.39473801,1842.6,1842.5,2.52756]
[1743447356935,0.00813801,1842.6,1842.5,2.52756]
[1743447357136,0.00813801,1842.6,1842.5,3.18214303]
[1743447357137,1.09363801,1842.6,1842.5,3.18214303]
[1743447357741,1.09363801,1842.6,1842.5,2.52756]
[1743447358136,1.46383801,1842.6,1842.5,2.52756]
[1743447358337,2.54933801,1842.6,1842.5,2.52756]
[1743447358844,2.54933801,1842.6,1842.5,3.18217092]
[1743447361442,2.54933801,1842.6,1842.5,2.52756]
[1743447361740,2.54933801,1842.6,1842.3,1.80971801]
[1743447361741,1.46383801,1842.6,1842.3,0.72403801]
[1743447361946,1.08562,1842.4,1842.3,2.53830801]
[1743447362241,1.08562,1842.4,1842.3,1.45263801]
[1743447362442,2.57512,1842.4,1842.3,2.53831801]
[1743447362746,2.57512,1842.4,1842.3,1.45263801]
[1743447362944,3.31032,1842.4,1842.3,1.45263801]
[1743447363141,3.31032,1842.4,1842.3,0.00813801]
[1743447365645,3.31032,1842.4,1842.3,2.56611801]
[1743447365846,1.08562,1842.4,1842.3,2.56611801]
[1743447366037,1.4845,1842.4,1842.3,2.56611801]
[1743447366346,6.25611,1842.5,1842.4,1.08562]
[1743447366644,6.25611,1842.5,1842.4,2.55792]
[1743447367345,6.25611,1842.5,1842.4,2.12823406]
[1743447367545,6.25611,1842.5,1842.4,3.21385406]
[1743447367746,6.25611,1842.5,1842.4,1.4723]
[1743447367950,6.25611,1842.5,1842.4,2.55792]
[1743447368446,6.25611,1842.5,1842.4,1.4723]
[1743447368841,6.25611,1842.5,1842.4,2.55792]
[1743447369445,6.25611,1842.5,1842.4,3.21433012]
[1743447369641,6.25611,1842.5,1842.4,2.12871012]
[1743447370143,6.25611,1842.5,1842.4,3.21433012]
[1743447371548,6.25611,1842.5,1842.4,2.12871012]
[1743447372049,6.25611,1842.5,1842.4,1.4723]
[1743447372745,6.25611,1842.5,1842.3,1.09381801]
[1743447372746,1.08562,1842.4,1842.3,0.00813801]
[1743447373049,2.45672,1842.4,1842.3,0.00813801]
[1743447373647,3.8711,1842.4,1841.3,2.71557]
[1743447373848,3.8711,1842.4,1841.6,5.63702]
[1743447373849,2.71436,1842.2,1841.6,5.63702]
[1743447374046,1.08589,1842.0,1841.9,1.08586]
[1743447374248,3.686,1842.1,1842.0,1.08586]
[1743447374448,4.77183,1842.1,1842.0,1.08582]
[1743447374755,3.686,1842.1,1842.0,1.08582]
[1743447374950,1.08576,1842.2,1842.1,1.08574]
[1743447375455,4.77164,1842.4,1842.3,1.08568]
[1743447375655,1.08571,1842.3,1842.2,1.08568]
[1743447375855,1.08571,1842.3,1842.2,2.50268]
[1743447376455,2.52171,1842.3,1842.2,1.417]
[1743447377056,1.08571,1842.3,1842.2,2.50274]
[1743447377553,2.52171,1842.3,1842.2,2.50274]
[1743447378257,2.52171,1842.3,1842.2,1.417]
[1743447380057,2.52171,1842.3,1842.2,2.50274]
[1743447380358,2.52171,1842.3,1842.2,1.417]
[1743447380555,2.52171,1842.3,1842.2,2.50274]
[1743447380951,54.727,1842.5,1842.2,2.50274]
[1743447381155,4.77061,1842.5,1842.4,1.08562]
[1743447381551,1.08561,1842.5,1842.4,1.81852]
[1743447381858,2.52038801,1842.6,1842.5,1.08556]
[1743447382154,0.00813801,1842.6,1842.5,2.56936]
[1743447382350,1.09363801,1842.6,1842.5,3.22485354]
[1743447382555,0.00813801,1842.6,1842.5,3.22485354]
[1743447382753,1.4267,1843.0,1842.9,1.08533]
[1743447382949,1.08524,1843.1,1843.0,1.08527]
[1743447383154,1.06864748,1843.1,1843.0,1.08527]
[1743447383355,2.49534748,1843.1,1843.0,1.08527]
[1743447383853,6.39762,1843.4,1843.1,1.08518]
[1743447384054,1.08509,1843.3,1843.2,1.4665]
[1743447384255,2.53919,1843.3,1843.2,1.4665]
[1743447384460,2.53919,1843.3,1843.2,2.55165]
[1743447385261,0.00813801,1843.4,1843.3,1.08509]
[1743447385464,1.08509,1843.3,1843.2,2.55162]
[1743447386363,1.08509,1843.3,1843.2,1.4665]
[1743447386564,1.08509,1843.3,1843.2,2.55165]
[1743447388256,2.49279,1843.3,1843.2,2.55165]
[1743447389364,0.00813801,1843.4,1843.3,1.08509]
[1743447389561,1.08509,1843.3,1843.2,2.55159]
[1743447389766,1.09322801,1843.4,1843.3,1.08509]
[1743447389957,1.09322801,1843.4,1843.3,1.4037]
[1743447390359,2.72086801,1843.4,1843.0,2.55624]
[1743447390559,1.08521,1843.1,1843.0,2.55624]
[1743447391059,1.0852,1843.2,1843.1,1.08517]
[1743447391659,1.0852,1843.2,1843.1,2.48887]
[1743447392168,1.0852,1843.2,1843.1,1.4037]
[1743447392366,1.0852,1843.2,1843.1,2.48891]
[1743447392866,1.0852,1843.2,1843.1,1.4037]
[1743447393070,1.0852,1843.2,1843.1,2.48891]
[1743447393271,1.0852,1843.2,1843.1,1.4037]
[1743447393768,2.4618,1843.2,1843.1,2.48891]
[1743447394669,2.4618,1843.2,1843.1,1.4037]
[1743447395066,1.08521,1843.1,1843.0,0.7521]
[1743447395262,2.46181,1843.1,1843.0,2.2425]
[1743447395461,1.3766,1843.1,1843.0,3.32777]
[1743447395664,2.46181,1843.1,1843.0,3.32777]
[1743447395864,1.3766,1843.1,1843.0,3.32777]
[1743447396071,1.08518,1843.2,1843.1,1.08521]
[1743447396266,2.54408,1843.2,1843.1,2.50241]
[1743447396562,0.00813801,1843.4,1843.2,1.0851]
[1743447396767,2.55206801,1843.4,1843.3,2.50229]
[1743447396965,1.09316801,1843.4,1843.3,2.50229]
[1743447398070,2.55206801,1843.4,1843.3,2.50229]
[1743447399370,0.00813801,1843.4,1843.3,2.50229]
[1743447399976,1.09316801,1843.4,1843.3,2.50229]
[1743447400272,1.09316801,1843.4,1843.3,1.4172]
[1743447400474,1.08509,1843.3,1843.2,0.7528]
[1743447400680,2.57199,1843.3,1843.2,3.34585]
[1743447403078,2.57199,1843.3,1843.2,2.2607]
[1743447403479,2.57199,1843.3,1843.2,3.34585]
[1743447410476,2.57199,1843.3,1843.2,2.2607]
[1743447410884,2.57199,1843.3,1843.2,3.34585]
[1743447411381,2.57199,1843.3,1843.2,2.2607]
[1743447411683,2.57199,1843.3,1843.2,3.34585]
[1743447411877,2.57199,1843.3,1843.2,4.00048884]
[1743447412076,2.57199,1843.3,1843.2,0.65463884]
[1743447412486,1.08527,1843.0,1842.9,1.48043801]
[1743447412681,1.08527,1843.0,1841.6,54.94123883]
[1743447412682,5.42607,1843.1,1842.7,0.6951]
[1743447412982,1.0855,1842.6,1842.5,1.08552]
[1743447413185,1.08556,1842.5,1842.4,4.76658]
[1743447413383,1.08556,1842.5,1842.4,3.681]
[1743447413680,1.08568,1842.4,1842.3,1.08564]
[1743447413882,1.08568,1842.4,1842.3,1.09377801]
[1743447414879,1.08568,1842.4,1842.3,0.00813801]
[1743447415272,1.4141,1842.5,1842.3,0.00813801]
[1743447415477,1.08554,1842.6,1842.5,1.08552]
[1743447415683,1.08548,1842.7,1842.6,1.0855]
[1743447416379,1.0855,1842.6,1842.5,1.81571]
[1743447417083,1.0855,1842.6,1842.5,0.7302]
[1743447417687,1.0855,1842.6,1842.5,2.1308]
[1743447418382,1.0855,1842.6,1842.5,3.21636]
[1743447419289,1.0855,1842.7,1842.6,1.0855]
[1743447419584,1.0855,1842.7,1842.6,3.2248]
[1743447420785,1.08545,1842.8,1842.7,1.08541]
[1743447420984,1.08545,1842.8,1842.7,2.44951]
[1743447421384,2.45615,1842.8,1842.7,2.44955]
[1743447421686,1.08545,1842.8,1842.7,2.44955]
[1743447421884,1.08538,1842.9,1842.8,1.08533]
[1743447422085,1.08538,1842.9,1842.8,1.79329]
[1743447422284,2.45608,1842.9,1842.8,1.79329]
[1743447422974,2.45608,1842.9,1842.8,0.7079]
[1743447423382,2.45608,1842.9,1842.8,2.1945]
[1743447424085,2.45608,1842.9,1842.6,0.7387]
[1743447424086,1.08545,1842.7,1842.6,0.7387]
[1743447424675,1.08545,1842.7,1842.4,0.6842]
[1743447424676,1.08556,1842.5,1842.4,0.6842]
[1743447424978,1.08562,1842.4,1842.3,1.82407801]
[1743447425281,1.08562,1842.4,1842.3,0.00813801]
[1743447425578,7.26662,1842.4,1842.3,0.00813801]
[1743447425982,1.08598,1841.8,1841.7,0.6842]
[1743447426180,1.08598,1841.8,1841.7,2.1708]
[1743447426984,1.08598,1841.8,1841.7,1.4866]
[1743447427883,1.08604,1841.7,1841.6,0.73843801]
[1743447428087,2.52304,1841.7,1841.6,0.73843801]
[1743447428983,2.52304,1841.7,1841.6,0.00813801]
[1743447433484,2.52304,1841.7,1841.6,1.09422801]
[1743447433688,1.086,1841.8,1841.7,1.08598]
[1743447433993,0.00813801,1841.9,1841.8,1.08598]
[1743447434384,0.00813801,1841.9,1841.8,1.79878]
[1743447434589,1.09405801,1841.9,1841.8,1.79878]
[1743447435090,1.09405801,1841.9,1841.8,0.7128]
[1743447435292,2.56675801,1841.9,1841.8,0.7128]
[1743447437490,2.56675801,1841.9,1841.8,1.79878]
[1743447437696,2.56675801,1841.9,1841.8,0.7128]
[1743447438588,1.08598,1841.8,1841.7,2.57959]
[1743447438790,0.00813801,1841.9,1841.8,1.08598]
[1743447439200,0.00813801,1841.9,1841.8,1.76458]
[1743447439389,1.09405801,1841.9,1841.8,1.76458]
[1743447439993,1.09405801,1841.9,1841.8,3.16778]
[1743447440697,1.09405801,1841.9,1841.8,2.0818]
[1743447440995,1.09405801,1841.9,1841.8,3.16778]
[1743447441294,0.00813801,1841.9,1841.8,3.16778]
[1743447441699,1.09405801,1841.9,1841.8,3.16778]
[1743447441894,0.00813801,1841.9,1841.8,3.16778]
[1743447442297,1.09405801,1841.9,1841.8,3.16778]
[1743447442598,0.00813801,1841.9,1841.8,3.16778]
[1743447442999,1.09405801,1841.9,1841.8,3.16778]
[1743447447197,0.00813801,1841.9,1841.8,3.16778]
[1743447449006,2.4955,1842.3,1842.2,1.08574]
[1743447449194,2.46236053,1842.3,1842.2,1.08574]
[1743447449399,1.08568,1842.3,1842.2,1.08574]
[1743447449802,1.08568,1842.3,1842.2,1.78894]
[1743447452311,1.08568,1842.3,1842.2,2.53034]
[1743447452312,2.57558,1842.3,1842.2,2.53034]
[1743447454811,2.57558,1842.3,1842.2,1.4446]
[1743447455109,2.57558,1842.3,1842.2,2.53034]
[1743447455310,2.57558,1842.3,1842.2,3.91964]
[1743447455814,2.57558,1842.3,1842.2,2.1307]
[1743447456014,1.08574,1842.2,1842.1,2.47506]
[1743447456213,2.49684,1842.2,1842.1,2.47506]
[1743447457411,2.49684,1842.2,1841.8,7.38368]
[1743447457412,1.08592,1842.0,1841.8,7.38368]
[1743447457608,1.08592,1842.0,1841.9,2.53013053]
[1743447457814,2.47372,1842.0,1841.9,1.44426053]
[1743447458117,1.08604,1841.7,1841.6,1.09415801]
[1743447458412,1.08604,1841.7,1841.6,1.77935801]
[1743447460715,2.47382,1841.8,1841.7,1.08604]
[1743447461216,2.47382,1841.8,1841.7,1.4573]
[1743447461604,1.08604,1841.7,1841.6,1.77942801]
[1743447461808,2.53074,1841.7,1841.6,1.77942801]
[1743447462009,2.53074,1841.7,1841.6,0.69333801]
[1743447462608,2.53074,1841.7,1841.6,0.00813801]
[1743447463518,2.53074,1841.7,1841.6,1.09422801]
[1743447463718,2.53074,1841.7,1841.6,2.47582801]
[1743447471020,2.53074,1841.7,1841.6,1.38973801]
[1743447471418,2.53074,1841.7,1841.6,0.00813801]
[1743447472421,2.53074,1841.7,1841.6,1.09422801]
[1743447473014,2.53074,1841.7,1841.6,0.00813801]
[1743447473418,2.53074,1841.7,1841.6,1.42943801]
[1743447474416,2.53074,1841.7,1841.6,0.00813801]
[1743447477516,6.20974,1841.7,1841.6,0.00813801]
[1743447478624,2.53074,1841.7,1841.6,1.09422801]
[1743447478822,2.53074,1841.7,1841.6,0.00813801]
[1743447479023,2.53074,1841.7,1841.6,1.39173801]
[1743447479424,2.53074,1841.7,1841.6,2.47782801]
[1743447480524,2.53074,1841.7,1841.6,1.39173801]
[1743447480724,2.53074,1841.7,1841.6,0.00813801]
[1743447481222,6.20974,1841.7,1841.6,8.01e-06]
[1743447481624,1.08627,1841.3,1841.2,2.2301]
[1743447481833,1.08633,1841.2,1841.1,0.7521]
[1743447482028,2.56153,1841.2,1841.1,0.7521]
[1743447482224,2.56153,1841.2,1841.1,2.2551]
[1743447483229,2.56153,1841.2,1841.1,3.34149]
[1743447484432,2.56153,1841.2,1841.1,2.2551]
[1743447484636,2.56153,1841.2,1841.1,3.34149]
[1743447485139,2.56153,1841.2,1841.1,2.2551]
[1743447485828,2.56153,1841.2,1841.1,3.34149]
[1743447486228,2.56153,1841.2,1841.1,2.2551]
[1743447486429,2.56153,1841.2,1841.1,3.34149]
[1743447486635,2.56153,1841.2,1841.1,2.2551]
[1743447487529,2.56153,1841.2,1841.1,3.34149]
[1743447488237,1.4752,1841.2,1841.1,3.34149]
[1743447488437,2.56153,1841.2,1841.1,3.34149]
[1743447489636,4.30225801,1841.3,1841.2,1.08633]
[1743447489839,4.30225801,1841.3,1841.2,2.45593]
[1743447490030,1.09445801,1841.3,1841.2,2.45593]
[1743447490438,0.00813801,1841.3,1841.2,2.45593]
[1743447492938,0.00813801,1841.3,1841.2,5.66373]
[1743447493133,4.29393,1841.6,1841.5,1.08615]
[1743447495933,3.2078,1841.6,1841.5,1.08615]
[1743447496239,4.29389,1841.6,1841.5,1.81285]
[1743447496633,3.2078,1841.6,1841.5,1.81285]
[1743447496833,4.29389,1841.6,1841.5,1.81285]
[1743447497039,2.50859,1841.6,1841.5,1.81285]
[1743447499032,1.09421801,1841.7,1841.6,1.08609]